fUSD/lending_fUSD_20240101
["ID","MTS","AMOUNT","RATE_DAILY","PERIOD"]
[309756196,1704087032160,-152.0,0.00032289,3]
[309756197,1704087032169,-210.83,0.00032375,2]
[309756198,1704087032179,-600.0,0.00033,3]
[309756199,1704087032188,-152.0,0.00033176,4]
[309756200,1704087032198,-1000.0,0.00033488,2]
[309756201,1704087032207,-1000.0,0.00033835,2]
[309756202,1704087032217,-209.84,0.00034027,2]
[309756203,1704087032226,-1000.0,0.00034062,4]
[309756204,1704087032235,-152.0,0.00034063,5]
[309756205,1704087032245,-432.0,0.000342,2]
[309756206,1704087032254,-250.0,0.00034251,111]
[309756207,1704087032264,-189.91,0.00034261,2]
[309756208,1704087032273,-222.22222,0.00034498,2]
[309756209,1704087032283,-1867.24,0.00034522,2]
[309756210,1704087032292,-333.33333,0.00034598,2]
[309756211,1704087032302,-210.83,0.00034639,2]
[309756212,1704087032312,-333.33333,0.00034698,2]
[309756213,1704087032322,-333.33333,0.00034798,2]
[309756214,1704087032332,-333.33333,0.00034898,2]
[309756215,1704087032342,-3474.3233,0.000349,2]
[309756216,1704087032353,-206.0,0.00034941,2]
[309756217,1704087032363,-152.0,0.00034949,6]
[309756218,1704087032372,-333.33333,0.00034998,2]
[309756220,1704087032382,-1587.81557186,0.00034999,4]
[309756222,1704087032391,-650.0,0.00035,3]
[309756224,1704087032401,-5000.0,0.00035,2]
[309756225,1704087032410,-5000.0,0.00035,2]
[309756226,1704087032419,-209.84,0.00035005,2]
[309756227,1704087032428,-5000.0,0.0003505,2]
[309756229,1704087032438,-5000.0,0.00035075,2]
[309756231,1704087032450,-333.33333,0.00035098,2]
[309756233,1704087032459,-5000.0,0.000351,2]
[309756235,1704087032469,-5000.0,0.00035125,2]
[309756237,1704087032479,-5000.0,0.0003515,2]
[309756239,1704087032489,-5000.0,0.00035175,2]
[309756241,1704087032498,-333.33333,0.00035198,2]
[309756243,1704087032508,-5000.0,0.000352,2]
[309756245,1704087032517,-5000.0,0.00035225,2]
[309756247,1704087032527,-5000.0,0.0003525,2]
[309756249,1704087032537,-5000.0,0.00035275,2]
[309756251,1704087032547,-47348.0056,0.00035275,2]
[309756253,1704087032556,-333.33333,0.00035298,2]
[309756255,1704087032566,-5000.0,0.000353,2]
[309756257,1704087032577,-5000.0,0.00035325,2]
[309756259,1704087032586,-200.0,0.00035331,10]
[309756261,1704087032596,-5000.0,0.0003535,2]
[309756263,1704087032605,-5000.0,0.00035375,2]
[309756265,1704087032616,-197.34,0.0003539,10]
[309756267,1704087032626,-164.45,0.0003539,10]
[309756270,1704087032636,-333.33333,0.00035398,2]
[309756272,1704087032645,-5000.0,0.000354,2]
[309756274,1704087032654,-5000.0,0.00035425,2]
[309756276,1704087032664,-13027.69509299,0.00035425,2]
[309756283,1704087038163,-1000.0,0.00034,4]
[309756284,1704087038173,-206.97701442,0.0003539,10]
[309756285,1704087038981,-615.30298558,0.0003539,10]
[309756286,1704087038991,-613.40160432,0.00035425,2]
[309756287,1704087039149,-5277.97677126,0.00035425,2]
[309756288,1704087039159,-5000.0,0.0003545,2]
[309756289,1704087039168,-5000.0,0.00035475,2]
[309756290,1704087039178,-333.33333,0.00035498,2]
[309756291,1704087039188,-5000.0,0.000355,2]
[309756292,1704087039197,-151.0,0.00035516,7]
[309756293,1704087039207,-5000.0,0.00035525,2]
[309756294,1704087039217,-18919.07346851,0.0003554,2]
[309756295,1704087039226,-5000.0,0.0003555,2]
[309756296,1704087039235,-5000.0,0.00035575,2]
[309756297,1704087039245,-1590.1338,0.00035578,2]
[309756298,1704087039255,-485.23266915,0.00035596,4]
[309756299,1704087039264,-333.33333,0.00035598,2]
[309756300,1704087039274,-150.0,0.000356,2]
[309756301,1704087039283,-3000.0,0.000356,4]
[309756302,1704087039293,-5000.0,0.000356,2]
[309756303,1704087039302,-151.0,0.000356,7]
[309756304,1704087039313,-153.0,0.00035606,2]
[309756305,1704087039323,-3000.0,0.0003561,4]
[309756306,1704087039334,-2620.48954088,0.00035614,2]
[309756307,1704087039343,-198.40104144,0.00035614,2]
[309756308,1704087039353,-759.85151872,0.00035614,4]
[309756309,1704087039363,-318.45299007,0.00035614,2]
[309756310,1704087039372,-200.0,0.00035614,2]
[309756311,1704087039384,-155.87293714,0.00035614,2]
[309756312,1704087039393,-277.95765904,0.00035614,2]
[309756313,1704087039403,-1776.85489025,0.00035615,2]
[309756314,1704087039413,-312.9802268,0.00035616,2]
[309756315,1704087039425,-1232.17,0.00035616,2]
[309756316,1704087039434,-500.0,0.00035616,2]
[309756317,1704087039446,-500.0,0.00035616,2]
[309756318,1704087039455,-500.0,0.00035616,2]
[309756319,1704087039465,-578.7,0.00035616,2]
[309756320,1704087039474,-500.0,0.00035616,2]
[309756321,1704087039483,-500.0,0.00035616,2]
[309756322,1704087039492,-500.0,0.00035616,2]
[309756323,1704087039501,-500.0,0.00035616,2]
[309756324,1704087039510,-500.0,0.00035616,2]
[309756325,1704087039519,-500.0,0.00035616,2]
[309756326,1704087039528,-500.0,0.00035616,2]
[309756327,1704087039538,-666.37,0.00035616,2]
[309756328,1704087039547,-500.0,0.00035616,2]
[309756329,1704087039556,-500.0,0.00035616,2]
[309756330,1704087039565,-500.0,0.00035616,2]
[309756331,1704087039574,-500.0,0.00035616,2]
[309756332,1704087039584,-500.0,0.00035616,2]
[309756333,1704087039594,-517.0152616,0.00035616,2]
[309756334,1704087039603,-2201.8910562,0.00035616,2]
[309756335,1704087039612,-156.05467913,0.00035616,2]
[309756336,1704087039623,-3282.6687769,0.00035616,2]
[309756337,1704087039632,-150.0,0.00035616,2]
[309756338,1704087039641,-3000.0,0.0003562,4]
[309756339,1704087039651,-5000.0,0.00035625,2]
[309756340,1704087039660,-3000.0,0.0003563,4]
[309756341,1704087039669,-5638.7722,0.0003564,4]
[309756342,1704087039679,-151.0,0.0003564,7]
[309756343,1704087039688,-208.0,0.0003565,2]
[309756344,1704087039697,-5000.0,0.0003565,2]
[309756345,1704087039707,-18919.07346851,0.00035654,2]
[309756346,1704087039716,-5000.0,0.00035675,2]
[309756347,1704087039725,-88620.0055,0.00035678,2]
[309756348,1704087039735,-151.0,0.00035678,7]
[309756349,1704087039744,-500.0,0.00035684,2]
[309756350,1704087039753,-616.49,0.00035684,2]
[309756351,1704087039762,-500.0,0.00035684,2]
[309756352,1704087039772,-500.0,0.00035684,2]
[309756353,1704087039782,-500.0,0.00035684,2]
[309756354,1704087039792,-549.48,0.00035684,2]
[309756355,1704087039803,-460.22064102,0.00035684,7]
[309756356,1704087039812,-500.0,0.00035684,2]
[309756357,1704087039822,-500.0,0.00035684,2]
[309756358,1704087039831,-2338.53,0.00035684,2]
[309756359,1704087039841,-500.0,0.00035684,2]
[309756360,1704087039850,-530.68,0.00035684,2]
[309756361,1704087039859,-500.0,0.00035685,2]
[309756362,1704087039868,-333.33333,0.00035698,2]
[309756363,1704087039878,-5000.0,0.000357,2]
[309756364,1704087039887,-257.27,0.000357,2]
[309756365,1704087039896,-5000.0,0.00035725,2]
[309756366,1704087039906,-250.0,0.0003575,30]
[309756367,1704087039916,-5000.0,0.0003575,2]
[309756368,1704087039925,-18919.07346851,0.00035769,2]
[309756369,1704087039936,-185.56,0.00035774,2]
[309756370,1704087039946,-5000.0,0.00035775,2]
[309756371,1704087039956,-500.0,0.00035782,2]
[309756372,1704087039966,-500.0,0.00035782,2]
[309756373,1704087039975,-500.0,0.00035782,2]
[309756374,1704087039986,-500.0,0.00035782,2]
[309756375,1704087039995,-634.26,0.00035782,2]
[309756376,1704087040004,-500.0,0.00035782,2]
[309756377,1704087040014,-506.35,0.00035782,2]
[309756378,1704087040025,-500.0,0.00035782,2]
[309756379,1704087040034,-500.0,0.00035782,2]
[309756380,1704087040043,-500.0,0.00035782,2]
[309756381,1704087040052,-500.0,0.00035782,2]
[309756382,1704087040061,-12519.5,0.00035782,5]
[309756383,1704087040070,-500.0,0.00035782,2]
[309756384,1704087040079,-500.0,0.00035782,2]
[309756385,1704087040090,-1094.69,0.00035782,2]
[309756386,1704087040099,-517.02,0.00035782,2]
[309756387,1704087040109,-500.0,0.00035783,2]
[309756388,1704087040120,-599.44,0.00035783,2]
[309756389,1704087040129,-500.0,0.00035783,2]
[309756390,1704087040140,-8928.06,0.00035783,2]
[309756391,1704087040150,-500.0,0.00035783,2]
[309756392,1704087040159,-681.12,0.00035783,2]
[309756393,1704087040169,-1111.08,0.00035783,2]
[309756394,1704087040179,-500.0,0.00035783,2]
[309756395,1704087040188,-534.41365674,0.00035783,2]
[309756396,1704087040197,-896.12,0.00035783,2]
[309756397,1704087040207,-500.0,0.00035783,2]
[309756398,1704087040216,-500.0,0.00035783,2]
[309756399,1704087040226,-500.0,0.00035783,2]
[309756400,1704087040236,-791.85,0.00035783,2]
[309756401,1704087040245,-500.0,0.00035783,2]
[309756402,1704087040256,-500.0,0.00035783,2]
[309756403,1704087040265,-1456.74,0.00035783,2]
[309756404,1704087040274,-500.0,0.00035783,2]
[309756405,1704087040284,-532.48,0.00035783,2]
[309756406,1704087040293,-500.0,0.00035783,2]
[309756407,1704087040304,-500.0,0.00035783,2]
[309756408,1704087040315,-500.0,0.00035783,2]
[309756409,1704087040324,-448.19217237,0.00035783,2]
[309756410,1704087040334,-500.0,0.00035783,2]
[309756411,1704087040344,-500.0,0.00035783,2]
[309756412,1704087040353,-1575.29,0.00035783,2]
[309756413,1704087040364,-692.86,0.00035783,2]
[309756414,1704087040374,-500.0,0.00035783,2]
[309756415,1704087040383,-2267.07,0.00035783,5]
[309756416,1704087040393,-521.71,0.00035783,2]
[309756417,1704087040403,-500.0,0.00035783,2]
[309756418,1704087040413,-151.0,0.00035783,7]
[309756419,1704087040423,-500.0,0.00035784,2]
[309756420,1704087040432,-500.0,0.00035784,2]
[309756421,1704087040444,-500.0,0.00035784,2]
[309756422,1704087040454,-500.0,0.00035784,2]
[309756423,1704087040463,-500.0,0.00035784,2]
[309756424,1704087040472,-500.0,0.00035784,2]
[309756425,1704087040481,-500.0,0.00035784,2]
[309756426,1704087040491,-500.0,0.00035784,2]
[309756427,1704087040501,-500.0,0.00035784,2]
[309756429,1704087040510,-500.0,0.00035784,2]
[309756431,1704087040519,-500.0,0.00035784,2]
[309756432,1704087040529,-500.0,0.00035784,2]
[309756433,1704087040538,-500.0,0.00035784,2]
[309756434,1704087040548,-500.0,0.00035784,2]
[309756435,1704087040557,-542.43603009,0.00035784,2]
[309756436,1704087040567,-1299.48,0.00035784,2]
[309756437,1704087040577,-500.0,0.00035784,2]
[309756438,1704087040587,-500.0,0.00035784,2]
[309756440,1704087040597,-500.0,0.00035784,2]
[309756442,1704087040606,-500.0,0.00035784,2]
[309756444,1704087040615,-525.21,0.00035784,2]
[309756446,1704087040625,-501.50549086,0.00035784,2]
[309756448,1704087040635,-500.0,0.00035784,2]
[309756450,1704087040644,-500.0,0.00035784,2]
[309756452,1704087040653,-500.0,0.00035784,2]
[309756454,1704087040662,-500.0,0.00035784,2]
[309756456,1704087040672,-500.0,0.00035784,2]
[309756458,1704087040681,-500.0,0.00035784,2]
[309756460,1704087040691,-500.0,0.00035784,2]
[309756462,1704087040700,-500.0,0.00035784,2]
[309756464,1704087040710,-500.0,0.00035784,2]
[309756465,1704087040719,-500.0,0.00035784,2]
[309756466,1704087040729,-500.0,0.00035784,2]
[309756467,1704087040738,-594.9,0.00035784,2]
[309756468,1704087040747,-500.0,0.00035784,2]
[309756469,1704087040756,-500.0,0.00035784,2]
[309756470,1704087040766,-500.0,0.00035784,2]
[309756471,1704087040776,-500.0,0.00035784,2]
[309756472,1704087040785,-500.0,0.00035784,2]
[309756473,1704087040794,-500.0,0.00035784,2]
[309756474,1704087040803,-500.0,0.00035784,2]
[309756475,1704087040813,-500.0,0.00035784,2]
[309756476,1704087040822,-500.0,0.00035784,7]
[309756477,1704087040832,-500.0,0.00035784,2]
[309756478,1704087040841,-500.0,0.00035784,2]
[309756479,1704087040850,-500.0,0.00035784,2]
[309756480,1704087040859,-500.0,0.00035784,2]
[309756481,1704087040868,-500.0,0.00035784,2]
[309756482,1704087040877,-518.66,0.00035784,2]
[309756483,1704087040886,-500.0,0.00035784,2]
[309756484,1704087040896,-500.0,0.00035784,2]
[309756485,1704087040905,-500.0,0.00035784,2]
[309756486,1704087040913,-500.0,0.00035784,2]
[309756487,1704087040923,-720.44,0.00035784,2]
[309756488,1704087040933,-500.0,0.00035784,2]
[309756489,1704087040942,-500.0,0.00035784,2]
[309756490,1704087040951,-500.0,0.00035784,2]
[309756491,1704087040961,-500.0,0.00035784,2]
[309756492,1704087040970,-500.0,0.00035784,2]
[309756493,1704087040980,-500.0,0.00035784,2]
[309756494,1704087040989,-500.0,0.00035784,2]
[309756495,1704087040998,-243.58296581,0.00035784,2]
[309756496,1704087041008,-500.0,0.00035784,2]
[309756497,1704087041017,-500.0,0.00035784,2]
[309756498,1704087041026,-500.0,0.00035784,2]
[309756499,1704087041035,-500.0,0.00035784,2]
[309756500,1704087041044,-500.0,0.00035784,2]
[309756501,1704087041052,-500.0,0.00035784,2]
[309756502,1704087041061,-500.0,0.00035784,2]
[309756503,1704087041070,-500.0,0.00035784,2]
[309756504,1704087041079,-500.0,0.00035784,2]
[309756505,1704087041089,-500.0,0.00035784,2]
[309756506,1704087041098,-500.0,0.00035784,2]
[309756507,1704087041107,-400.0,0.00035784,2]
[309756508,1704087041117,-500.0,0.00035784,2]
[309756509,1704087041127,-500.0,0.00035784,2]
[309756510,1704087041136,-529.11924284,0.00035784,2]
[309756511,1704087041146,-500.0,0.00035784,2]
[309756512,1704087041155,-500.0,0.00035784,2]
[309756513,1704087041165,-500.0,0.00035784,2]
[309756514,1704087041174,-150.76270579,0.00035784,2]
[309756515,1704087041183,-500.0,0.00035784,2]
[309756516,1704087041193,-500.0,0.00035784,2]
[309756517,1704087041202,-500.0,0.00035784,2]
[309756518,1704087041211,-500.0,0.00035784,2]
[309756519,1704087041221,-500.0,0.00035784,2]
[309756520,1704087041230,-631.26,0.00035784,2]
[309756521,1704087041240,-500.0,0.00035784,2]
[309756522,1704087041249,-637.34,0.00035784,2]
[309756523,1704087041259,-219.98932056,0.00035784,2]
[309756524,1704087041269,-500.0,0.00035784,2]
[309756525,1704087041278,-183.682661,0.00035784,2]
[309756526,1704087041287,-547.97763333,0.00035784,2]
[309756527,1704087041296,-500.0,0.00035784,2]
[309756528,1704087041306,-500.0,0.00035784,2]
[309756529,1704087041315,-500.0,0.00035784,2]
[309756530,1704087041324,-500.0,0.00035784,2]
[309756531,1704087041334,-500.0,0.00035784,2]
[309756532,1704087041343,-335.3863686,0.00035784,2]
[309756533,1704087041353,-500.0,0.00035784,2]
[309756534,1704087041363,-500.0,0.00035784,24]
[309756535,1704087041372,-500.0,0.00035784,2]
[309756536,1704087041383,-500.0,0.00035784,2]
[309756537,1704087041392,-500.0,0.00035784,2]
[309756538,1704087041402,-500.0,0.00035784,2]
[309756539,1704087041412,-500.0,0.00035784,2]
[309756540,1704087041422,-500.0,0.00035784,2]
[309756541,1704087041431,-500.0,0.00035784,2]
[309756542,1704087041442,-500.0,0.00035784,2]
[309756543,1704087041454,-500.0,0.00035784,2]
[309756544,1704087041464,-500.0,0.00035784,2]
[309756545,1704087041473,-500.0,0.00035784,2]
[309756546,1704087041483,-500.0,0.00035784,2]
[309756547,1704087041491,-500.0,0.00035784,2]
[309756548,1704087041501,-500.0,0.00035784,2]
[309756549,1704087041510,-372.75306281,0.00035784,2]
[309756550,1704087041519,-500.0,0.00035784,2]
[309756551,1704087041528,-500.0,0.00035784,2]
[309756552,1704087041538,-500.0,0.00035784,2]
[309756553,1704087041547,-500.0,0.00035784,2]
[309756554,1704087041555,-500.0,0.00035784,2]
[309756555,1704087041564,-500.0,0.00035784,2]
[309756556,1704087041574,-500.0,0.00035784,2]
[309756557,1704087041583,-151.0,0.00035784,7]
[309756558,1704087041592,-151.0,0.00035784,7]
[309756559,1704087041601,-165.018125,0.00035784,7]
[309756560,1704087041610,-133241.67899155,0.00035785,2]
[309756561,1704087041620,-500.0,0.00035787,2]
[309756562,1704087041629,-7500.0,0.0003579,2]
[309756563,1704087041638,-333.33333,0.00035798,2]
[309756564,1704087041648,-5000.0,0.000358,2]
[309756565,1704087041657,-5000.0,0.00035825,2]
[309756566,1704087041666,-152.0,0.00035836,7]
[309756567,1704087041675,-5000.0,0.0003585,2]
[309756568,1704087041685,-5000.0,0.00035875,2]
[309756569,1704087041695,-155.0,0.00035883,2]
[309756570,1704087041704,-230.27417744,0.00035883,4]
[309756571,1704087041714,-18919.07346851,0.00035883,2]
[309756572,1704087041724,-356.06757809,0.00035884,2]
[309756573,1704087041734,-304.91336417,0.00035884,7]
[309756574,1704087041743,-226.59708458,0.00035884,4]
[309756575,1704087041753,-2500.0,0.00035884,2]
[309756576,1704087041762,-1232.17,0.0003589,2]
[309756577,1704087041771,-500.0,0.0003589,2]
[309756578,1704087041781,-417.13897555,0.0003589,2]
[309756579,1704087041790,-500.0,0.0003589,2]
[309756580,1704087041799,-578.7,0.0003589,2]
[309756581,1704087041809,-500.0,0.0003589,2]
[309756582,1704087041818,-500.0,0.0003589,2]
[309756583,1704087041827,-500.0,0.0003589,2]
[309756584,1704087041837,-500.0,0.0003589,2]
[309756585,1704087041847,-500.0,0.0003589,2]
[309756586,1704087041858,-500.0,0.0003589,2]
[309756587,1704087041867,-666.37,0.0003589,2]
[309756588,1704087041876,-500.0,0.0003589,2]
[309756589,1704087041885,-500.0,0.0003589,2]
[309756590,1704087041895,-500.0,0.0003589,2]
[309756591,1704087041903,-500.0,0.0003589,2]
[309756592,1704087041913,-333.33333,0.00035898,2]
[309756593,1704087041922,-200.0,0.000359,13]
[309756594,1704087041932,-5000.0,0.000359,2]
[309756595,1704087041941,-5000.0,0.00035925,2]
[309756596,1704087041950,-150.0,0.00035929,2]
[309756597,1704087041959,-5000.0,0.0003595,2]
[309756598,1704087041969,-616.49,0.00035958,2]
[309756599,1704087041979,-500.0,0.00035958,2]
[309756600,1704087041991,-500.0,0.00035958,2]
[309756601,1704087042002,-549.48,0.00035958,2]
[309756602,1704087042012,-500.0,0.00035958,2]
[309756603,1704087042021,-500.0,0.00035958,2]
[309756604,1704087042032,-2338.53,0.00035958,2]
[309756605,1704087042043,-500.0,0.00035958,2]
[309756606,1704087042052,-530.68,0.00035958,2]
[309756607,1704087042061,-250.0,0.00035958,2]
[309756608,1704087042072,-55555.0,0.00035958,3]
[309756609,1704087042083,-208.0,0.00035958,2]
[309756610,1704087042092,-153.0,0.00035965,2]
[309756611,1704087042101,-500.0,0.00035968,2]
[309756612,1704087042111,-200.0,0.00035968,2]
[309756613,1704087042121,-5000.0,0.00035975,2]
[309756614,1704087042130,-209.84,0.00035984,2]
[309756615,1704087042139,-18919.07346851,0.00035998,2]
[309756616,1704087042149,-333.33333,0.00035998,2]
[309756617,1704087042158,-5000.0,0.00036,2]
[309756618,1704087042167,-5000.0,0.00036025,2]
[309756619,1704087042178,-163.0,0.00036036,2]
[309756620,1704087042186,-5000.0,0.0003604,2]
[309756621,1704087042196,-5000.0,0.0003605,2]
[309756622,1704087042205,-500.0,0.00036056,2]
[309756623,1704087042214,-500.0,0.00036056,2]
[309756624,1704087042223,-500.0,0.00036056,2]
[309756625,1704087042233,-500.0,0.00036056,2]
[309756626,1704087042242,-634.26,0.00036056,2]
[309756627,1704087042252,-500.0,0.00036056,2]
[309756628,1704087042261,-506.35,0.00036056,2]
[309756629,1704087042270,-500.0,0.00036056,2]
[309756630,1704087042280,-500.0,0.00036056,2]
[309756631,1704087042290,-500.0,0.00036056,2]
[309756632,1704087042300,-500.0,0.00036056,2]
[309756633,1704087042310,-12519.5,0.00036056,5]
[309756634,1704087042320,-500.0,0.00036056,2]
[309756635,1704087042330,-500.0,0.00036056,2]
[309756636,1704087042342,-1094.69,0.00036056,2]
[309756637,1704087042351,-517.02,0.00036056,2]
[309756638,1704087042360,-500.0,0.00036057,2]
[309756639,1704087042372,-599.44,0.00036057,2]
[309756640,1704087042381,-500.0,0.00036057,2]
[309756641,1704087042391,-8928.06,0.00036057,2]
[309756642,1704087042400,-500.0,0.00036057,2]
[309756643,1704087042409,-681.12,0.00036057,2]
[309756644,1704087042418,-1111.08,0.00036057,2]
[309756645,1704087042427,-500.0,0.00036057,2]
[309756646,1704087042437,-896.12,0.00036057,2]
[309756647,1704087042449,-500.0,0.00036057,2]
[309756648,1704087042458,-500.0,0.00036057,2]
[309756649,1704087042468,-453.35593003,0.00036057,2]
[309756650,1704087042477,-791.85,0.00036057,2]
[309756651,1704087042486,-500.0,0.00036057,2]
[309756652,1704087042495,-1456.74,0.00036057,2]
[309756653,1704087042504,-500.0,0.00036057,2]
[309756654,1704087042513,-532.48,0.00036057,2]
[309756655,1704087042523,-263.87538471,0.00036057,2]
[309756656,1704087042535,-500.0,0.00036057,2]
[309756657,1704087042546,-368.7,0.00036057,2]
[309756658,1704087042556,-500.0,0.00036057,2]
[309756659,1704087042566,-500.0,0.00036057,2]
[309756660,1704087042576,-1575.29,0.00036057,2]
[309756661,1704087042589,-692.86,0.00036057,2]
[309756662,1704087042599,-500.0,0.00036057,2]
[309756663,1704087042611,-2267.07,0.00036057,5]
[309756664,1704087042620,-521.71,0.00036057,2]
[309756665,1704087042631,-500.0,0.00036057,2]
[309756666,1704087042640,-500.0,0.00036058,2]
[309756667,1704087042649,-500.0,0.00036058,2]
[309756668,1704087042658,-500.0,0.00036058,2]
[309756669,1704087042669,-500.0,0.00036058,2]
[309756670,1704087042679,-500.0,0.00036058,2]
[309756671,1704087042688,-500.0,0.00036058,2]
[309756672,1704087042698,-500.0,0.00036058,2]
[309756673,1704087042707,-500.0,0.00036058,2]
[309756674,1704087042718,-500.0,0.00036058,2]
[309756675,1704087042730,-500.0,0.00036058,2]
[309756676,1704087042740,-500.0,0.00036058,2]
[309756677,1704087042750,-500.0,0.00036058,2]
[309756678,1704087042759,-500.0,0.00036058,2]
[309756679,1704087042769,-398.49623455,0.00036058,2]
[309756680,1704087042780,-1299.48,0.00036058,2]
[309756681,1704087042789,-500.0,0.00036058,2]
[309756682,1704087042802,-500.0,0.00036058,2]
[309756683,1704087042813,-500.0,0.00036058,2]
[309756684,1704087042824,-500.0,0.00036058,2]
[309756685,1704087042835,-525.21,0.00036058,2]
[309756686,1704087042845,-500.0,0.00036058,2]
[309756687,1704087042854,-500.0,0.00036058,2]
[309756688,1704087042866,-500.0,0.00036058,2]
[309756689,1704087042877,-500.0,0.00036058,2]
[309756690,1704087042888,-500.0,0.00036058,2]
[309756691,1704087042897,-500.0,0.00036058,2]
[309756692,1704087042907,-500.0,0.00036058,2]
[309756693,1704087042916,-500.0,0.00036058,2]
[309756694,1704087043079,-500.0,0.00036058,2]
[309756695,1704087043092,-500.0,0.00036058,2]
[309756696,1704087043102,-500.0,0.00036058,2]
[309756697,1704087043111,-594.9,0.00036058,2]
[309756698,1704087043121,-500.0,0.00036058,2]
[309756699,1704087043131,-500.0,0.00036058,2]
[309756700,1704087043140,-500.0,0.00036058,2]
[309756701,1704087043150,-500.0,0.00036058,2]
[309756702,1704087043160,-500.0,0.00036058,2]
[309756703,1704087043169,-500.0,0.00036058,2]
[309756704,1704087043179,-500.0,0.00036058,2]
[309756705,1704087043188,-500.0,0.00036058,2]
[309756706,1704087043198,-623.47328914,0.00036058,7]
[309756707,1704087043207,-500.0,0.00036058,2]
[309756708,1704087043217,-500.0,0.00036058,2]
[309756709,1704087043226,-500.0,0.00036058,2]
[309756710,1704087043236,-500.0,0.00036058,2]
[309756711,1704087043245,-500.0,0.00036058,2]
[309756712,1704087043255,-518.66,0.00036058,2]
[309756713,1704087043264,-500.0,0.00036058,2]
[309756714,1704087043274,-500.0,0.00036058,2]
[309756715,1704087043283,-500.0,0.00036058,2]
[309756716,1704087043293,-500.0,0.00036058,2]
[309756717,1704087043302,-720.44,0.00036058,2]
[309756718,1704087043311,-500.0,0.00036058,2]
[309756719,1704087043323,-500.0,0.00036058,2]
[309756720,1704087043335,-500.0,0.00036058,2]
[309756721,1704087043345,-500.0,0.00036058,2]
[309756722,1704087043355,-500.0,0.00036058,2]
[309756723,1704087043364,-291.32001952,0.00036058,2]
[309756724,1704087043374,-500.0,0.00036058,2]
[309756725,1704087043383,-500.0,0.00036058,2]
[309756726,1704087043393,-500.0,0.00036058,2]
[309756727,1704087043402,-500.0,0.00036058,2]
[309756728,1704087043411,-500.0,0.00036058,2]
[309756729,1704087043420,-500.0,0.00036058,2]
[309756730,1704087043430,-500.0,0.00036058,2]
[309756731,1704087043439,-500.0,0.00036058,2]
[309756732,1704087043454,-500.0,0.00036058,2]
[309756733,1704087043463,-500.0,0.00036058,2]
[309756734,1704087043472,-500.0,0.00036058,2]
[309756735,1704087043481,-500.0,0.00036058,2]
[309756736,1704087043490,-500.0,0.00036058,2]
[309756737,1704087043499,-500.0,0.00036058,2]
[309756738,1704087043509,-500.0,0.00036058,2]
[309756739,1704087043518,-500.0,0.00036058,2]
[309756740,1704087043527,-500.0,0.00036058,2]
[309756741,1704087043536,-500.0,0.00036058,2]
[309756742,1704087043545,-626.98116214,0.00036058,2]
[309756743,1704087043554,-500.0,0.00036058,2]
[309756744,1704087043563,-500.0,0.00036058,2]